[Event "XXII Obert Internacional d'Escacs Sant Marti 2022"]
[Site "Barcelona, Spain"]
[Date "2022.07.16"]
[Round "4.10"]
[White "Bakshi, Rutuja"]
[Black "Noboa Silva, Kevin"]
[Result "1/2-1/2"]
[TimeControl "1.30 fb 30"]
[WhiteElo "2084"]
[BlackElo "2304"]

1. d4 {[%clk 01:30:57]} {[%emt 00:00:02]} e6 {[%clk 01:28:42]} {[%emt
00:02:19]} 2. Nf3 {[%clk 01:31:09]} {[%emt 00:00:19]} Nf6 {[%clk 01:28:56]}
{[%emt 00:00:15]} 3. e3 {[%clk 01:31:24]} {[%emt 00:00:15]} b6 {[%clk
01:28:35]} {[%emt 00:00:52]} 4. Bd3 {[%clk 01:31:47]} {[%emt 00:00:06]} Bb7
{[%clk 01:28:38]} {[%emt 00:00:25]} 5. O-O {[%clk 01:32:11]} {[%emt 00:00:08]}
Be7 {[%clk 01:28:26]} {[%emt 00:00:42]} 6. Nbd2 {[%clk 01:32:14]} {[%emt
00:00:27]} a6 {[%clk 01:26:23]} {[%emt 00:02:34]} 7. b3 {[%clk 01:31:08]}
{[%emt 00:01:37]} c5 {[%clk 01:26:04]} {[%emt 00:00:48]} 8. Bb2 {[%clk
01:30:00]} {[%emt 00:01:38]} cxd4 {[%clk 01:25:18]} {[%emt 00:01:16]} 9. exd4
{[%clk 01:29:08]} {[%emt 00:01:22]} O-O {[%clk 01:24:24]} {[%emt 00:01:24]} 10.
a3 {[%clk 01:26:11]} {[%emt 00:03:28]} d6 {[%clk 01:16:50]} {[%emt 00:08:03]}
11. Re1 {[%clk 01:20:28]} {[%emt 00:06:13]} Nbd7 {[%clk 01:16:24]} {[%emt
00:00:56]} 12. Nf1 {[%clk 01:09:05]} {[%emt 00:11:53]} Re8 {[%clk 01:14:17]}
{[%emt 00:02:37]} 13. Ng3 {[%clk 01:04:38]} {[%emt 00:04:57]} Bf8 {[%clk
01:09:44]} {[%emt 00:05:03]} 14. c4 {[%clk 00:54:27]} {[%emt 00:10:41]} Rc8
{[%clk 01:05:56]} {[%emt 00:04:17]} 15. Rc1 {[%clk 00:50:00]} {[%emt 00:04:58]}
Rc7 {[%clk 01:00:20]} {[%emt 00:06:06]} 16. Ng5 {[%clk 00:34:58]} {[%emt
00:15:32]} d5 {[%clk 00:54:58]} {[%emt 00:05:52]} 17. cxd5 {[%clk 00:24:39]}
{[%emt 00:10:49]} Rxc1 {[%clk 00:54:48]} {[%emt 00:00:40]} 18. Bxc1 {[%clk
00:25:08]} {[%emt 00:00:01]} Bxd5 {[%clk 00:55:07]} {[%emt 00:00:11]} 19. Qc2
{[%clk 00:13:18]} {[%emt 00:12:20]} g6 {[%clk 00:53:33]} {[%emt 00:02:04]} 20.
f3 {[%clk 00:10:14]} {[%emt 00:03:35]} b5 {[%clk 00:34:38]} {[%emt 00:19:24]}
21. b4 {[%clk 00:08:46]} {[%emt 00:01:58]} Bg7 {[%clk 00:33:34]} {[%emt
00:01:33]} 22. Be3 {[%clk 00:08:04]} {[%emt 00:01:14]} Nb6 {[%clk 00:33:31]}
{[%emt 00:00:32]} 23. Rd1 {[%clk 00:06:46]} {[%emt 00:01:47]} Bc4 {[%clk
00:29:46]} {[%emt 00:04:16]} 24. N5e4 {[%clk 00:05:20]} {[%emt 00:01:56]} Nxe4
{[%clk 00:27:15]} {[%emt 00:03:01]} 25. Nxe4 {[%clk 00:02:30]} {[%emt
00:03:20]} Qd5 {[%clk 00:19:03]} {[%emt 00:08:41]} 26. Qe2 {[%clk 00:01:12]}
{[%emt 00:01:49]} Rd8 {[%clk 00:16:32]} {[%emt 00:03:01]} 27. Kh1 {[%clk
00:01:08]} {[%emt 00:00:35]} Bxd3 {[%clk 00:16:03]} {[%emt 00:00:58]} 28. Rxd3
{[%clk 00:01:22]} {[%emt 00:00:16]} Qc4 {[%clk 00:13:58]} {[%emt 00:02:35]} 29.
Qd2 {[%clk 00:00:56]} {[%emt 00:00:56]} Nd5 {[%clk 00:07:04]} {[%emt 00:07:24]}
30. Bg1 {[%clk 00:00:41]} {[%emt 00:00:45]} Qc6 {[%clk 00:04:47]} {[%emt
00:02:46]} 31. Nc5 {[%clk 00:00:56]} {[%emt 00:00:16]} Ne7 {[%clk 00:04:23]}
{[%emt 00:00:55]} 32. g4 {[%clk 00:00:38]} {[%emt 00:00:48]} Nd5 {[%clk
00:03:18]} {[%emt 00:01:35]} 33. Bf2 {[%clk 00:01:00]} {[%emt 00:00:08]} Nb6
{[%clk 00:03:24]} {[%emt 00:00:24]} 34. Kg2 {[%clk 00:00:57]} {[%emt 00:00:33]}
Nc4 {[%clk 00:03:39]} {[%emt 00:00:15]} 35. Qg5 {[%clk 00:01:15]} {[%emt
00:00:12]} Rd5 {[%clk 00:03:50]} {[%emt 00:00:19]} 36. Qf4 {[%clk 00:01:26]}
{[%emt 00:00:19]} Qc8 {[%clk 00:02:52]} {[%emt 00:01:28]} 37. h3 {[%clk
00:01:18]} {[%emt 00:00:38]} Qd8 {[%clk 00:02:09]} {[%emt 00:01:13]} 38. Qe4
{[%clk 00:00:44]} {[%emt 00:01:05]} Qc8 {[%clk 00:01:48]} {[%emt 00:00:51]} 39.
Qf4 {[%clk 00:01:11]} {[%emt 00:00:01]} h6 {[%clk 00:01:54]} {[%emt 00:00:25]}
40. Qe4 {[%clk 00:01:16]} {[%emt 00:00:25]} Nb6 {[%clk 00:01:27]} {[%emt
00:00:57]} 41. Kg1 {[%clk 00:00:56]} {[%emt 00:00:50]} Rd8 {[%clk 00:01:34]}
{[%emt 00:00:23]} 42. Kg2 {[%clk 00:01:09]} {[%emt 00:00:17]} Qa8 {[%clk
00:01:39]} {[%emt 00:00:25]} 43. Nb7 {[%clk 00:00:45]} {[%emt 00:00:54]} Rb8
{[%clk 00:01:33]} {[%emt 00:00:36]} 44. Nc5 {[%clk 00:01:14]} Rc8 {[%clk
00:00:58]} {[%emt 00:01:05]} 45. Be1 {[%clk 00:01:07]} {[%emt 00:00:37]} Bf8
{[%clk 00:00:37]} {[%emt 00:00:52]} 46. h4 {[%clk 00:00:53]} {[%emt 00:00:43]}
Qd5 {[%clk 00:00:45]} {[%emt 00:00:22]} 47. Qxd5 {[%clk 00:00:44]} {[%emt
00:00:40]} Nxd5 {[%clk 00:01:13]} {[%emt 00:00:02]} 48. Bd2 {[%clk 00:01:13]}
Rc6 {[%clk 00:01:14]} {[%emt 00:00:28]} 49. f4 {[%clk 00:01:13]} {[%emt
00:00:30]} Bxc5 {[%clk 00:00:36]} {[%emt 00:01:08]} 50. dxc5 {[%clk 00:01:39]}
{[%emt 00:00:04]} f5 {[%clk 00:00:47]} {[%emt 00:00:19]} 51. g5 {[%clk
00:01:50]} {[%emt 00:00:19]} h5 {[%clk 00:00:51]} {[%emt 00:00:26]} 52. Kf3
{[%clk 00:01:23]} {[%emt 00:00:57]} Kf7 {[%clk 00:01:16]} {[%emt 00:00:05]} 53.
Rb3 {[%clk 00:00:59]} {[%emt 00:00:55]} Rc8 {[%clk 00:01:30]} {[%emt 00:00:15]}
54. Ke2 {[%clk 00:01:03]} {[%emt 00:00:26]} Rd8 {[%clk 00:01:42]} {[%emt
00:00:18]} 55. Rd3 {[%clk 00:01:02]} {[%emt 00:00:31]} Ke7 {[%clk 00:01:03]}
{[%emt 00:01:09]} 56. Kf3 {[%clk 00:01:19]} {[%emt 00:00:14]} Rd7 {[%clk
00:00:51]} {[%emt 00:00:42]} 57. Be1 {[%clk 00:01:18]} {[%emt 00:00:30]} Kd8
{[%clk 00:01:04]} {[%emt 00:00:16]} 58. Bd2 {[%clk 00:00:52]} {[%emt 00:00:58]}
Kc7 {[%clk 00:01:30]} {[%emt 00:00:03]} 59. Ke2 {[%clk 00:00:55]} {[%emt
00:00:26]} Kc6 {[%clk 00:01:35]} {[%emt 00:00:26]} 60. Be3 {[%clk 00:01:01]}
{[%emt 00:00:23]} Re7 {[%clk 00:01:24]} {[%emt 00:00:41]} 61. Kf3 {[%clk
00:00:49]} {[%emt 00:00:43]} e5 {[%clk 00:01:40]} {[%emt 00:00:14]} 62. fxe5
{[%clk 00:00:54]} {[%emt 00:00:25]} Rxe5 {[%clk 00:02:09]} {[%emt 00:00:01]} 63.
Bf2 {[%clk 00:00:41]} {[%emt 00:00:43]} Re4 {[%clk 00:02:24]} {[%emt 00:00:15]}
64. Rd2 {[%clk 00:00:47]} {[%emt 00:00:25]} Rf4+ {[%clk 00:02:07]} {[%emt
00:00:47]} 65. Kg3 {[%clk 00:00:45]} {[%emt 00:00:32]} Rc4 {[%clk 00:02:13]}
{[%emt 00:00:24]} 66. Bd4 {[%clk 00:00:40]} {[%emt 00:00:36]} a5 {[%clk
00:01:45]} {[%emt 00:00:58]} 67. bxa5 {[%emt 00:00:17]} Ra4 {[%clk 00:02:13]}
{[%emt 00:00:01]} 68. Kf2 {[%clk 00:00:49]} {[%emt 00:00:34]} Rxa3 {[%clk
00:01:33]} {[%emt 00:01:10]} 69. Re2 {[%clk 00:00:56]} {[%emt 00:00:23]} Nf4
{[%clk 00:01:36]} {[%emt 00:00:27]} 70. Re7 {[%clk 00:01:06]} {[%emt 00:00:20]}
b4 {[%clk 00:01:02]} {[%emt 00:01:05]} 71. Be3 {[%clk 00:01:19]} {[%emt
00:00:17]} Nd3+ {[%clk 00:00:58]} {[%emt 00:00:34]} 72. Ke2 {[%clk 00:01:31]}
{[%emt 00:00:18]} Nxc5 {[%clk 00:00:55]} {[%emt 00:00:33]} 73. Rg7 {[%clk
00:01:21]} {[%emt 00:00:39]} b3 {[%clk 00:00:34]} {[%emt 00:00:52]} 74. Rxg6+
{[%clk 00:01:50]} {[%emt 00:00:01]} Kd5 {[%clk 00:00:54]} {[%emt 00:00:10]} 75.
Bxc5 {[%clk 00:01:32]} {[%emt 00:00:48]} Kxc5 {[%clk 00:01:23]} 76. Rb6 {[%clk
00:02:00]} Kc4 {[%clk 00:00:50]} {[%emt 00:01:04]} 77. a6 {[%clk 00:02:10]}
{[%emt 00:00:20]} Ra2+ {[%clk 00:00:46]} {[%emt 00:00:34]} 78. Kf3 {[%clk
00:02:34]} {[%emt 00:00:06]} b2 {[%clk 00:00:35]} {[%emt 00:00:41]} 79. g6
{[%clk 00:01:48]} {[%emt 00:01:16]} Rxa6 {[%clk 00:00:34]} {[%emt 00:00:31]} 80.
Rxb2 {[%clk 00:01:34]} {[%emt 00:00:45]} Rxg6 {[%clk 00:01:03]} 81. Kf4 {[%clk
00:02:03]} Rg4 {[%clk 00:01:03]} {[%emt 00:00:29]} 82. Kxf5 {[%clk 00:02:29]}
{[%emt 00:00:04]} Rxh4 {[%clk 00:00:47]} {[%emt 00:00:45]} 83. Kg5 {[%clk
00:02:57]} {[%emt 00:00:03]} Rh1 {[%clk 00:01:10]} {[%emt 00:00:06]} 84. Rb6
{[%clk 00:03:08]} {[%emt 00:00:19]} h4 {[%clk 00:01:32]} {[%emt 00:00:09]} 85.
Kg4 {[%clk 00:03:25]} {[%emt 00:00:12]} h3 {[%clk 00:01:48]} {[%emt 00:00:15]}
86. Kg3 {[%clk 00:03:49]} {[%emt 00:00:06]} Kd3 {[%clk 00:01:55]} {[%emt
00:00:22]} 87. Rh6 {[%clk 00:04:02]} {[%emt 00:00:17]} Rg1 {[%clk 00:02:08]}
{[%emt 00:00:18]} 88. Kh2 {[%clk 00:04:26]} {[%emt 00:00:06]} Rg2+ {[%clk
00:02:29]} {[%emt 00:00:09]} 1/2-1/2